[Event "Paracin Open 2022"]
[Site "Paracin"]
[Date "2022.07.08"]
[Round "1.12"]
[White "Vaibhav Jayant Raut"]
[Black "Koustav Chatterjee"]
[Result "0-1"]
[ECO "A20"]
[WhiteElo "2169"]
[BlackElo "2485"]
[Annotator "RC"]
[PlyCount "68"]
[EventDate "2022.07.08"]
[EventCountry "SRB"]
[SourceTitle "playchess.com"]
[Source "ChessBase"]
[SourceQuality "1"]
[TimeControl "5400+30"]

1. c4 {[%emt 0:00:06]} e5 {[%emt 0:01:02]} 2. g3 {[%emt 0:00:10]} c6 {[%emt 0:00:14]} 3. Nf3 {[%emt 0:00:42]} e4 {[%emt 0:00:06]} 4. Nd4 {[%emt 0:00:12]} d5 {[%emt 0:00:06]} 5. cxd5 {[%emt 0:00:10]} Qxd5 {[%emt 0:00:05]} 6. e3 {[%emt 0:05:06]} Bc5 {[%emt 0:00:33]} 7. Nc3 {[%emt 0:06:24]} Qe5 {[%emt 0:00:10]} 8. d3 {[%emt 0:07:48]} exd3 {[%emt 0:08:41]} 9. Qxd3 {[%emt 0:00:28]} Nf6 {[%emt 0:04:21]} 10. Nf3 {[%emt 0:06:18]} Qh5 {[%emt 0:04:44]} 11. Bg2 {[%emt 0:01:21]} Bh3 {[%emt 0:24:36]} 12. O-O {[%emt 0:11:32]} Nbd7 {[%emt 0:02:28]} 13. Bxh3 {[%emt 0:11:54]} Qxh3 {[%emt 0:00:39]} 14. Rd1 {[%emt 0:00:13]} O-O-O {[%emt 0:06:17]} 15. Qf1 {[%emt 0:04:55]} Qh5 {[%emt 0:08:35]} 16. Kg2 {[%emt 0:00:16]} g5 {[%emt 0:07:16]} 17. b3 {[%emt 0:12:43]} g4 {[%emt 0:04:17]} 18. Nh4 {[%emt 0:00:34]} Ne5 {[%emt 0:00:17]} 19. Bb2 {[%emt 0:00:38]} Ng6 {[%emt 0:03:13]} 20. Qc4 {[%emt 0:05:54]} Nxh4+ {[%emt 0:03:47]} 21. gxh4 {[%emt 0:00:02]} Qf5 {[%emt 0:02:41]} 22. Kg1 {[%emt 0:10:56]} Bd6 {[%emt 0:04:22]} 23. Qf1 {[%emt 0:01:53]} Be5 {[%emt 0:02:03]} 24. Na4 {[%emt 0:01:44]} Ne4 {[%emt 0:01:05]} 25. Qe2 {[%emt 0:03:06]} Bxb2 {[%emt 0:10:28]} 26. Qxb2 {[%emt 0:03:04]} b5 {[%emt 0:00:10]} 27. Nc3 {[%emt 0:00:28]} Qf6 {[%emt 0:00:04]} 28. Rd4 {[%emt 0:01:38]} Rxd4 {[%emt 0:00:02]} 29. exd4 {[%emt 0:00:16]} Qxd4 {[%emt 0:00:03]} 30. Rc1 {[%emt 0:00:10]} g3 {[%emt 0:01:19]} 31. hxg3 {[%emt 0:00:32]} Nxg3 {[%emt 0:00:22]} 32. Kg2 {[%emt 0:01:13]} Nf5 {[%emt 0:01:38]} 33. Qe2 {[%emt 0:00:24]} Qf4 {[%emt 0:00:36]} 34. Rg1 {[%emt 0:01:27]} Rd8 {[%emt 0:01:10]} 0-1

[Event "Paracin Open 2022"]
[Site "Paracin"]
[Date "2022.07.08"]
[Round "1.13"]
[White "Aditya Mittal"]
[Black "Ilijic, Mihajilo"]
[Result "0-1"]
[ECO "A16"]
[WhiteElo "2480"]
[BlackElo "2167"]
[Annotator "RC"]
[PlyCount "106"]
[EventDate "2022.07.08"]
[EventCountry "SRB"]
[SourceTitle "playchess.com"]
[Source "ChessBase"]
[SourceQuality "1"]
[TimeControl "5400+30"]

1. Nf3 {[%emt 0:00:03]} Nf6 {[%emt 0:00:25]} 2. c4 {[%emt 0:00:05]} g6 {[%emt 0:00:19]} 3. Nc3 {[%emt 0:00:03]} d5 {[%emt 0:00:42]} 4. cxd5 {[%emt 0:00:35]} Nxd5 {[%emt 0:00:12]} 5. h4 {[%emt 0:00:07]} Nxc3 {[%emt 0:07:00]} 6. bxc3 {[%emt 0:01:41]} h5 {[%emt 0:02:00]} 7. e4 {[%emt 0:01:04]} Bg7 {[%emt 0:01:31]} 8. Rb1 {[%emt 0:05:04]} c5 {[%emt 0:04:26]} 9. Bb5+ {[%emt 0:04:28]} Bd7 {[%emt 0:04:57]} 10. Be2 {[%emt 0:18:03]} Bc6 {[%emt 0:10:21]} 11. Ng5 {[%emt 0:11:12]} Nd7 {[%emt 0:07:25]} 12. O-O {[%emt 0:05:09]} Nf6 {[%emt 0:15:39]} 13. f3 {[%emt 0:05:40]} e6 {[%emt 0:05:15]} 14. d4 {[%emt 0:02:32]} cxd4 {[%emt 0:04:27]} 15. cxd4 {[%emt 0:00:14]} Nh7 {[%emt 0:00:54]} 16. e5 {[%emt 0:06:59]} O-O {[%emt 0:05:59]} 17. Bc4 {[%emt 0:07:02]} Bd5 {[%emt 0:07:05]} 18. Bb3 {[%emt 0:11:05]} Rc8 {[%emt 0:03:19]} 19. Ba3 {[%emt 0:05:21]} Re8 {[%emt 0:01:40]} 20. Bxd5 {[%emt 0:01:16]} Qxd5 {[%emt 0:01:33]} 21. Ne4 {[%emt 0:00:04]} Red8 {[%emt 0:08:23]} 22. Nd6 {[%emt 0:01:15]} Rc3 {[%emt 0:01:18]} 23. Rb5 {[%emt 0:04:04]} Qxa2 {[%emt 0:01:40]} 24. Bb2 {[%emt 0:00:13]} Rc7 {[%emt 0:01:04]} 25. Qd3 {[%emt 0:02:40]} a6 {[%emt 0:01:44]} 26. Rb3 {[%emt 0:01:39]} Qa4 {[%emt 0:01:21]} 27. Nxb7 {[%emt 0:00:39]} Rb8 {[%emt 0:00:37]} 28. Ra1 {[%emt 0:00:29]} Qxb3 {[%emt 0:00:10]} 29. Qxb3 {[%emt 0:00:19]} Rcxb7 {[%emt 0:00:05]} 30. Qc4 {[%emt 0:00:54]} Rxb2 {[%emt 0:00:09]} 31. Rxa6 {[%emt 0:00:25]} Bh6 {[%emt 0:01:24]} 32. d5 {[%emt 0:04:51]} R2b4 {[%emt 0:01:16]} 33. Qc7 {[%emt 0:00:40]} Bf4 {[%emt 0:01:02]} 34. Ra2 {[%emt 0:00:32]} Bg3 {[%emt 0:00:28]} 35. Kf1 {[%emt 0:00:04]} R4b7 {[%emt 0:01:10]} 36. Qc6 {[%emt 0:00:16]} exd5 {[%emt 0:00:45]} 37. Ra8 {[%emt 0:01:18]} Rxa8 {[%emt 0:00:34]} 38. Qxb7 {[%emt 0:00:01]} Re8 {[%emt 0:00:13]} 39. f4 {[%emt 0:01:05]} Bxf4 {[%emt 0:00:22]} 40. Qxd5 {[%emt 0:00:35]} Bxe5 {[%emt 0:00:16]} 41. Qb5 {[%emt 0:00:37]} Nf6 {[%emt 0:00:22]} 42. Kf2 {[%emt 0:00:07]} Kg7 {[%emt 0:00:58]} 43. Kf3 {[%emt 0:00:01]} Re6 {[%emt 0:00:12]} 44. Qb7 {[%emt 0:00:24]} Ng4 {[%emt 0:00:39]} 45. Qa7 {[%emt 0:00:49]} Bf6 {[%emt 0:00:14]} 46. g3 {[%emt 0:00:24]} Re3+ {[%emt 0:00:55]} 47. Kg2 {[%emt 0:00:01]} Be5 {[%emt 0:00:22]} 48. Kh1 {[%emt 0:00:41]} Re2 {[%emt 0:00:50]} 49. Qa3 {[%emt 0:00:45]} Rb2 {[%emt 0:00:40]} 50. Qc5 {[%emt 0:01:21]} Rd2 {[%emt 0:00:21]} 51. Qa3 {[%emt 0:00:26]} Rh2+ {[%emt 0:00:18]} 52. Kg1 {[%emt 0:00:02]} Bd4+ {[%emt 0:00:08]} 53. Kf1 {[%emt 0:00:04]} Ne3+ {[%emt 0:00:06]} 0-1

[Event "Paracin Open 2022"]
[Site "Paracin"]
[Date "2022.07.08"]
[Round "1.14"]
[White "Karadzhov, Ivan"]
[Black "Suleymenov, Alisher"]
[Result "0-1"]
[ECO "D80"]
[WhiteElo "2167"]
[BlackElo "2467"]
[Annotator "RC"]
[PlyCount "86"]
[EventDate "2022.07.08"]
[EventCountry "SRB"]
[SourceTitle "playchess.com"]
[Source "ChessBase"]
[SourceQuality "1"]
[TimeControl "5400+30"]

1. d4 {[%emt 0:00:07]} Nf6 {[%emt 0:00:07]} 2. c4 {[%emt 0:00:11]} g6 {[%emt 0:00:41]} 3. Nc3 {[%emt 0:00:11]} d5 {[%emt 0:00:23]} 4. Bg5 {[%emt 0:00:15]} Bg7 {[%emt 0:00:14]} 5. e3 {[%emt 0:01:44]} c5 {[%emt 0:01:10]} 6. Nf3 {[%emt 0:03:01]} cxd4 {[%emt 0:00:14]} 7. Nxd4 {[%emt 0:03:55]} Ne4 {[%emt 0:01:00]} 8. Nxe4 {[%emt 0:02:37]} dxe4 {[%emt 0:00:04]} 9. Qa4+ {[%emt 0:04:09]} Bd7 {[%emt 0:00:11]} 10. Qa3 {[%emt 0:00:28]} Nc6 {[%emt 0:00:07]} 11. Rd1 {[%emt 0:01:59]} h6 {[%emt 0:08:30]} 12. Bh4 {[%emt 0:02:16]} Nxd4 {[%emt 0:13:38]} 13. exd4 {[%emt 0:03:15]} Bg4 {[%emt 0:00:29]} 14. Be2 {[%emt 0:03:49]} Bxe2 {[%emt 0:00:33]} 15. Kxe2 {[%emt 0:00:15]} Qd7 {[%emt 0:00:14]} 16. h3 {[%emt 0:05:51]} f5 {[%emt 0:08:41]} 17. Bg3 {[%emt 0:01:55]} O-O {[%emt 0:00:29]} 18. Be5 {[%emt 0:05:20]} f4 {[%emt 0:13:35]} 19. Rhg1 {[%emt 0:25:53]} f3+ {[%emt 0:14:39]} 20. gxf3 {[%emt 0:05:49]} exf3+ {[%emt 0:00:04]} 21. Ke1 {[%emt 0:00:55]} Qe6 {[%emt 0:00:38]} 22. Qe3 {[%emt 0:03:26]} Rf5 {[%emt 0:01:50]} 23. Rg4 {[%emt 0:02:33]} Bxe5 {[%emt 0:08:22]} 24. Re4 {[%emt 0:01:35]} Qxc4 {[%emt 0:04:02]} 25. Rxe5 {[%emt 0:05:18]} Rxe5 {[%emt 0:00:42]} 26. dxe5 {[%emt 0:02:53]} Rf8 {[%emt 0:01:04]} 27. Rd4 {[%emt 0:01:01]} Qxa2 {[%emt 0:02:11]} 28. Qxh6 {[%emt 0:03:35]} Qa6 {[%emt 0:10:33]} 29. Kd2 {[%emt 0:07:23]} Rc8 {[%emt 0:03:56]} 30. Rd3 {[%emt 0:01:17]} Qa5+ {[%emt 0:02:08]} 31. Rc3 {[%emt 0:00:55]} Qd5+ {[%emt 0:02:09]} 32. Kc1 {[%emt 0:01:45]} Rxc3+ {[%emt 0:00:47]} 33. bxc3 {[%emt 0:00:05]} Qe4 {[%emt 0:00:59]} 34. Kb2 {[%emt 0:00:20]} b5 {[%emt 0:01:00]} 35. h4 {[%emt 0:00:33]} b4 {[%emt 0:00:40]} 36. h5 {[%emt 0:01:17]} bxc3+ {[%emt 0:00:18]} 37. Ka3 {[%emt 0:00:25]} gxh5 {[%emt 0:01:05]} 38. Qg5+ {[%emt 0:00:30]} Kf7 {[%emt 0:00:41]} 39. Qxh5+ {[%emt 0:00:10]} Ke6 {[%emt 0:00:07]} 40. Qh6+ {[%emt 0:00:18]} Kxe5 {[%emt 0:01:12]} 41. Qg7+ {[%emt 0:00:08]} Kd6 {[%emt 0:00:43]} 42. Qxc3 {[%emt 0:00:04]} Qd5 {[%emt 0:00:24]} 43. Kb2 {[%emt 0:00:40]} Qe5 {[%emt 0:00:08]} 0-1

[Event "Paracin Open 2022"]
[Site "Paracin"]
[Date "2022.07.08"]
[Round "1.15"]
[White "Nitish Belurkar"]
[Black "Bozinovic, Bogdan"]
[Result "1-0"]
[ECO "B29"]
[WhiteElo "2460"]
[BlackElo "2165"]
[Annotator "RC"]
[PlyCount "87"]
[EventDate "2022.07.08"]
[EventCountry "SRB"]
[SourceTitle "playchess.com"]
[Source "ChessBase"]
[SourceQuality "1"]
[TimeControl "5400+30"]

1. e4 {[%emt 0:00:05]} c5 {[%emt 0:01:18]} 2. Nf3 {[%emt 0:00:07]} Nf6 {[%emt 0:00:54]} 3. e5 {[%emt 0:02:26]} Nd5 {[%emt 0:00:15]} 4. d4 {[%emt 0:00:26]} cxd4 {[%emt 0:01:11]} 5. Qxd4 {[%emt 0:00:10]} e6 {[%emt 0:00:45]} 6. c4 {[%emt 0:01:35]} Nc6 {[%emt 0:02:03]} 7. Qe4 {[%emt 0:01:02]} f5 {[%emt 0:01:13]} 8. exf6 {[%emt 0:01:21]} Nxf6 {[%emt 0:00:13]} 9. Qc2 {[%emt 0:00:14]} d5 {[%emt 0:02:01]} 10. a3 {[%emt 0:02:08]} Bd6 {[%emt 0:04:36]} 11. Bd3 {[%emt 0:00:17]} O-O {[%emt 0:01:52]} 12. O-O {[%emt 0:00:14]} Qe8 {[%emt 0:02:55]} 13. Nbd2 {[%emt 0:07:57]} Qh5 {[%emt 0:03:25]} 14. h3 {[%emt 0:05:28]} Bd7 {[%emt 0:02:36]} 15. Re1 {[%emt 0:00:41]} Rac8 {[%emt 0:10:41]} 16. Qd1 {[%emt 0:04:53]} Rce8 {[%emt 0:04:55]} 17. b4 {[%emt 0:06:13]} Ne5 {[%emt 0:08:37]} 18. Be2 {[%emt 0:02:37]} Qf7 {[%emt 0:08:40]} 19. Nxe5 {[%emt 0:10:02]} Bxe5 {[%emt 0:00:14]} 20. Ra2 {[%emt 0:00:09]} Bc3 {[%emt 0:05:21]} 21. Rf1 {[%emt 0:06:40]} e5 {[%emt 0:03:57]} 22. cxd5 {[%emt 0:01:26]} Bxd2 {[%emt 0:03:23]} 23. Rxd2 {[%emt 0:45:49]} Ne4 {[%emt 0:02:43]} 24. Rd3 {[%emt 0:00:00]} Bb5 {[%emt 0:08:38]} 25. Re3 {[%emt 0:00:00]} Bxe2 {[%emt 0:02:05]} 26. Qxe2 {[%emt 0:00:00]} Nf6 {[%emt 0:00:18]} 27. Rxe5 {[%emt 0:00:00]} Nxd5 {[%emt 0:00:18]} 28. Bb2 {[%emt 0:00:00]} Nf4 {[%emt 0:01:39]} 29. Qg4 {[%emt 0:00:00]} Ng6 {[%emt 0:06:09]} 30. Rxe8 {[%emt 0:00:00]} Rxe8 {[%emt 0:00:13]} 31. Rd1 {[%emt 0:00:00]} h6 {[%emt 0:05:36]} 32. Rd7 {[%emt 0:00:00]} Re7 {[%emt 0:00:12]} 33. Rxe7 {[%emt 0:00:00]} Nxe7 {[%emt 0:00:02]} 34. Qd4 {[%emt 0:00:00]} Nc6 {[%emt 0:02:02]} 35. Qc3 {[%emt 0:00:00]} a6 {[%emt 0:00:17]} 36. a4 {[%emt 0:00:00]} Qd7 {[%emt 0:00:37]} 37. b5 {[%emt 0:00:00]} axb5 {[%emt 0:00:14]} 38. axb5 {[%emt 0:00:00]} Nd8 {[%emt 0:00:58]} 39. Qc4+ {[%emt 0:00:00]} Kh7 {[%emt 0:00:31]} 40. Be5 {[%emt 0:00:00]} Ne6 {[%emt 0:00:21]} 41. Kh2 {[%emt 0:00:00]} Nd8 {[%emt 0:00:58]} 42. f4 {[%emt 0:00:00]} Kg6 {[%emt 0:02:05]} 43. Qe4+ {[%emt 0:00:00]} Kf7 {[%emt 0:01:43]} 44. Qh7 {[%emt 0:00:00]} 1-0

[Event "Paracin Open 2022"]
[Site "Paracin"]
[Date "2022.07.08"]
[Round "1.16"]
[White "Prokhorov, Ivan"]
[Black "Agmanov, Zhandos"]
[Result "0-1"]
[ECO "E11"]
[WhiteElo "2162"]
[BlackElo "2459"]
[Annotator "RC"]
[PlyCount "120"]
[EventDate "2022.07.08"]
[EventCountry "SRB"]
[SourceTitle "playchess.com"]
[Source "ChessBase"]
[SourceQuality "1"]
[TimeControl "5400+30"]

1. d4 {[%emt 0:00:03]} d5 {[%emt 0:00:28]} 2. Nf3 {[%emt 0:00:13]} Nf6 {[%emt 0:01:12]} 3. c4 {[%emt 0:00:12]} e6 {[%emt 0:00:21]} 4. g3 {[%emt 0:00:15]} Bb4+ {[%emt 0:03:44]} 5. Bd2 {[%emt 0:00:23]} Be7 {[%emt 0:00:47]} 6. Bg2 {[%emt 0:00:27]} c6 {[%emt 0:00:16]} 7. Qc2 {[%emt 0:01:16]} Nbd7 {[%emt 0:00:24]} 8. O-O {[%emt 0:00:31]} b6 {[%emt 0:00:05]} 9. Bf4 {[%emt 0:03:16]} Bb7 {[%emt 0:00:38]} 10. Nbd2 {[%emt 0:02:14]} Nh5 {[%emt 0:02:42]} 11. cxd5 {[%emt 0:03:46]} exd5 {[%emt 0:01:59]} 12. Ne5 {[%emt 0:02:14]} Nxe5 {[%emt 0:04:38]} 13. Bxe5 {[%emt 0:01:27]} O-O {[%emt 0:00:54]} 14. Bf3 {[%emt 0:24:38]} Nf6 {[%emt 0:01:15]} 15. Bf4 {[%emt 0:05:16]} Rc8 {[%emt 0:06:33]} 16. Rfd1 {[%emt 0:03:26]} Qd7 {[%emt 0:02:04]} 17. Nf1 {[%emt 0:02:14]} Rfe8 {[%emt 0:02:45]} 18. Ne3 {[%emt 0:02:29]} Bf8 {[%emt 0:01:07]} 19. Bg5 {[%emt 0:11:22]} Qe6 {[%emt 0:01:39]} 20. Qf5 {[%emt 0:09:03]} Qxf5 {[%emt 0:06:21]} 21. Nxf5 {[%emt 0:00:03]} Ne4 {[%emt 0:00:15]} 22. Bf4 {[%emt 0:02:43]} g6 {[%emt 0:05:29]} 23. Nh6+ {[%emt 0:00:59]} Kg7 {[%emt 0:00:31]} 24. Ng4 {[%emt 0:00:57]} h5 {[%emt 0:00:31]} 25. Bxe4 {[%emt 0:01:49]} hxg4 {[%emt 0:01:23]} 26. Bd3 {[%emt 0:00:20]} Be7 {[%emt 0:01:36]} 27. Be5+ {[%emt 0:01:31]} Kg8 {[%emt 0:04:01]} 28. Rac1 {[%emt 0:02:57]} c5 {[%emt 0:05:39]} 29. Bb5 {[%emt 0:02:59]} Red8 {[%emt 0:00:00]} 30. dxc5 {[%emt 0:00:18]} bxc5 {[%emt 0:00:01]} 31. e3 {[%emt 0:02:01]} f6 {[%emt 0:14:24]} 32. Bc3 {[%emt 0:00:18]} Kf7 {[%emt 0:00:08]} 33. Be2 {[%emt 0:00:53]} f5 {[%emt 0:01:00]} 34. Bf1 {[%emt 0:02:36]} d4 {[%emt 0:01:46]} 35. Bc4+ {[%emt 0:01:22]} Kf8 {[%emt 0:04:47]} 36. Ba5 {[%emt 0:02:59]} Rd6 {[%emt 0:01:37]} 37. Be2 {[%emt 0:02:26]} Ba6 {[%emt 0:05:26]} 38. Bxa6 {[%emt 0:03:13]} Rxa6 {[%emt 0:00:02]} 39. b4 {[%emt 0:00:11]} dxe3 {[%emt 0:00:32]} 40. fxe3 {[%emt 0:00:13]} Re8 {[%emt 0:00:00]} 41. Rc4 {[%emt 0:02:05]} cxb4 {[%emt 0:01:47]} 42. Bxb4 {[%emt 0:00:04]} Bxb4 {[%emt 0:00:14]} 43. Rxb4 {[%emt 0:00:03]} Rxa2 {[%emt 0:00:14]} 44. Rd7 {[%emt 0:01:58]} Rxe3 {[%emt 0:00:37]} 45. Rb8+ {[%emt 0:00:51]} Re8 {[%emt 0:00:07]} 46. Rxe8+ {[%emt 0:00:29]} Kxe8 {[%emt 0:00:02]} 47. Rg7 {[%emt 0:00:03]} Ra6 {[%emt 0:00:09]} 48. Kf2 {[%emt 0:00:26]} Kf8 {[%emt 0:00:20]} 49. Rc7 {[%emt 0:00:11]} Ra3 {[%emt 0:00:10]} 50. Ke2 {[%emt 0:00:51]} a5 {[%emt 0:00:31]} 51. Ra7 {[%emt 0:00:14]} g5 {[%emt 0:03:28]} 52. Rh7 {[%emt 0:00:43]} f4 {[%emt 0:01:29]} 53. Rh5 {[%emt 0:01:30]} f3+ {[%emt 0:00:57]} 54. Kf1 {[%emt 0:00:12]} Ra1+ {[%emt 0:00:09]} 55. Kf2 {[%emt 0:00:10]} Ra2+ {[%emt 0:00:25]} 56. Kf1 {[%emt 0:00:07]} a4 {[%emt 0:00:46]} 57. Rxg5 {[%emt 0:00:24]} a3 {[%emt 0:00:42]} 58. Rxg4 {[%emt 0:00:33]} Rxh2 {[%emt 0:00:36]} 59. Ra4 {[%emt 0:01:51]} a2 {[%emt 0:00:19]} 60. Kg1 {[%emt 0:00:18]} Rb2 {[%emt 0:00:04]} 0-1

[Event "Paracin Open 2022"]
[Site "Paracin"]
[Date "2022.07.08"]
[Round "1.17"]
[White "Sturt, Raven"]
[Black "Kurmangaliyeva, Liya"]
[Result "1-0"]
[ECO "D38"]
[WhiteElo "2457"]
[BlackElo "2157"]
[Annotator "RC"]
[PlyCount "107"]
[EventDate "2022.07.08"]
[EventCountry "SRB"]
[SourceTitle "playchess.com"]
[Source "ChessBase"]
[SourceQuality "1"]
[TimeControl "5400+30"]

1. d4 {[%emt 0:29:00]} Nf6 {[%emt 0:00:39]} 2. c4 {[%emt 0:00:07]} e6 {[%emt 0:00:15]} 3. Nf3 {[%emt 0:00:08]} d5 {[%emt 0:00:29]} 4. Nc3 {[%emt 0:00:06]} Bb4 {[%emt 0:00:26]} 5. Bg5 {[%emt 0:00:05]} Nbd7 {[%emt 0:00:30]} 6. cxd5 {[%emt 0:03:12]} exd5 {[%emt 0:00:22]} 7. e3 {[%emt 0:00:05]} c5 {[%emt 0:00:41]} 8. dxc5 {[%emt 0:01:21]} Qa5 {[%emt 0:05:54]} 9. Nd2 {[%emt 0:00:14]} Bxc3 {[%emt 0:14:22]} 10. bxc3 {[%emt 0:00:05]} O-O {[%emt 0:01:04]} 11. Qc2 {[%emt 0:00:51]} Ne4 {[%emt 0:12:31]} 12. Nxe4 {[%emt 0:04:40]} dxe4 {[%emt 0:00:09]} 13. Rb1 {[%emt 0:00:34]} Nxc5 {[%emt 0:07:57]} 14. Rb5 {[%emt 0:13:32]} Qc7 {[%emt 0:02:35]} 15. Be2 {[%emt 0:00:42]} Be6 {[%emt 0:04:36]} 16. O-O {[%emt 0:07:39]} Rac8 {[%emt 0:05:23]} 17. Rb4 {[%emt 0:01:46]} Qa5 {[%emt 0:05:44]} 18. Be7 {[%emt 0:04:56]} Rfe8 {[%emt 0:03:47]} 19. Bxc5 {[%emt 0:03:23]} Rxc5 {[%emt 0:08:08]} 20. Qxe4 {[%emt 0:00:44]} Rxc3 {[%emt 0:02:56]} 21. Ra4 {[%emt 0:01:05]} Qb6 {[%emt 0:08:00]} 22. Rb1 {[%emt 0:04:20]} Qc5 {[%emt 0:02:48]} 23. Qxb7 {[%emt 0:04:00]} Rc2 {[%emt 0:02:45]} 24. Qa6 {[%emt 0:03:46]} Rd8 {[%emt 0:01:43]} 25. Rd4 {[%emt 0:07:23]} Rc8 {[%emt 0:03:48]} 26. a4 {[%emt 0:00:18]} g6 {[%emt 0:01:44]} 27. h3 {[%emt 0:01:27]} Ra2 {[%emt 0:00:22]} 28. Bg4 {[%emt 0:01:30]} Rc6 {[%emt 0:02:30]} 29. Qd3 {[%emt 0:00:21]} Bxg4 {[%emt 0:01:30]} 30. hxg4 {[%emt 0:00:16]} Kg7 {[%emt 0:00:54]} 31. Rf4 {[%emt 0:00:58]} Rc7 {[%emt 0:00:43]} 32. Rb5 {[%emt 0:01:24]} Qc1+ {[%emt 0:00:33]} 33. Kh2 {[%emt 0:00:05]} Rd2 {[%emt 0:00:20]} 34. Qb3 {[%emt 0:01:30]} Qc6 {[%emt 0:00:48]} 35. Qb4 {[%emt 0:01:04]} Qd6 {[%emt 0:00:18]} 36. Qxd6 {[%emt 0:01:51]} Rxd6 {[%emt 0:00:04]} 37. Kg3 {[%emt 0:00:01]} Rd2 {[%emt 0:00:29]} 38. e4 {[%emt 0:01:13]} Rd4 {[%emt 0:00:58]} 39. a5 {[%emt 0:00:01]} Ra4 {[%emt 0:00:32]} 40. e5 {[%emt 0:00:25]} Ra3+ {[%emt 0:00:10]} 41. Rf3 {[%emt 0:00:08]} Ra4 {[%emt 0:00:19]} 42. Rf6 {[%emt 0:01:41]} Re4 {[%emt 0:00:27]} 43. Ra6 {[%emt 0:00:23]} Re7 {[%emt 0:00:21]} 44. f4 {[%emt 0:00:56]} Rc7 {[%emt 0:00:18]} 45. g5 {[%emt 0:00:52]} h6 {[%emt 0:00:49]} 46. gxh6+ {[%emt 0:00:06]} Kxh6 {[%emt 0:00:05]} 47. Kf3 {[%emt 0:00:20]} Ra4 {[%emt 0:00:28]} 48. Rb3 {[%emt 0:00:17]} Kg7 {[%emt 0:00:29]} 49. Kg4 {[%emt 0:00:06]} Rc5 {[%emt 0:01:15]} 50. Rb7 {[%emt 0:00:41]} Rcxa5 {[%emt 0:00:51]} 51. Rxa5 {[%emt 0:02:19]} Rxa5 {[%emt 0:00:08]} 52. e6 {[%emt 0:00:04]} Ra6 {[%emt 0:00:57]} 53. Rxf7+ {[%emt 0:00:15]} Kg8 {[%emt 0:00:05]} 54. Rf6 {[%emt 0:00:12]} 1-0

[Event "Paracin Open 2022"]
[Site "Paracin"]
[Date "2022.07.08"]
[Round "1.18"]
[White "Aaditya Dhingra"]
[Black "Neelash Saha"]
[Result "0-1"]
[ECO "B99"]
[WhiteElo "2156"]
[BlackElo "2446"]
[Annotator "RC"]
[PlyCount "121"]
[EventDate "2022.07.08"]
[EventCountry "SRB"]
[SourceTitle "playchess.com"]
[Source "ChessBase"]
[SourceQuality "1"]
[TimeControl "5400+30"]

1. e4 {[%emt 0:00:07]} c5 {[%emt 0:05:57]} 2. Nf3 {[%emt 0:00:12]} d6 {[%emt 0:00:05]} 3. d4 {[%emt 0:00:18]} cxd4 {[%emt 0:00:02]} 4. Nxd4 {[%emt 0:00:11]} Nf6 {[%emt 0:00:03]} 5. Nc3 {[%emt 0:00:43]} a6 {[%emt 0:00:04]} 6. Bg5 {[%emt 0:00:30]} e6 {[%emt 0:00:16]} 7. f4 {[%emt 0:00:15]} Be7 {[%emt 0:00:05]} 8. Qf3 {[%emt 0:01:08]} Qc7 {[%emt 0:00:15]} 9. O-O-O {[%emt 0:01:03]} Nbd7 {[%emt 0:00:17]} 10. g4 {[%emt 0:02:06]} h6 {[%emt 0:00:09]} 11. Bxf6 {[%emt 0:02:08]} Bxf6 {[%emt 0:00:11]} 12. h4 {[%emt 0:00:28]} Nb6 {[%emt 0:00:06]} 13. g5 {[%emt 0:01:40]} Bxd4 {[%emt 0:00:05]} 14. Rxd4 {[%emt 0:00:06]} Qc5 {[%emt 0:00:02]} 15. Rd2 {[%emt 0:16:35]} Bd7 {[%emt 0:00:17]} 16. Be2 {[%emt 0:00:54]} Na4 {[%emt 0:01:44]} 17. Nxa4 {[%emt 0:11:32]} Bxa4 {[%emt 0:00:06]} 18. Rhd1 {[%emt 0:00:23]} Rc8 {[%emt 0:00:06]} 19. Bd3 {[%emt 0:09:46]} Rc7 {[%emt 0:08:10]} 20. g6 {[%emt 0:10:41]} O-O {[%emt 0:00:25]} 21. Qg4 {[%emt 0:03:41]} e5 {[%emt 0:19:18]} 22. f5 {[%emt 0:10:39]} fxg6 {[%emt 0:01:12]} 23. Qxg6 {[%emt 0:00:57]} Rf6 {[%emt 0:00:31]} 24. Qg3 {[%emt 0:03:17]} Be8 {[%emt 0:01:16]} 25. Kb1 {[%emt 0:03:52]} b5 {[%emt 0:03:50]} 26. c3 {[%emt 0:06:12]} Kh8 {[%emt 0:02:30]} 27. Bc2 {[%emt 0:05:21]} Bh5 {[%emt 0:00:33]} 28. Rc1 {[%emt 0:01:42]} Bf7 {[%emt 0:00:40]} 29. Bb3 {[%emt 0:01:16]} Bc4 {[%emt 0:01:53]} 30. Bxc4 {[%emt 0:01:34]} bxc4 {[%emt 0:00:06]} 31. Rd5 {[%emt 0:00:48]} Qc6 {[%emt 0:00:06]} 32. h5 {[%emt 0:00:55]} Rxf5 {[%emt 0:02:03]} 33. Rxd6 {[%emt 0:02:01]} Qxe4+ {[%emt 0:08:22]} 34. Ka1 {[%emt 0:00:05]} Rxh5 {[%emt 0:00:06]} 35. a4 {[%emt 0:02:56]} Rg5 {[%emt 0:01:04]} 36. Qh3 {[%emt 0:00:45]} Qf5 {[%emt 0:01:01]} 37. Qh1 {[%emt 0:00:13]} Kh7 {[%emt 0:05:46]} 38. Rxa6 {[%emt 0:00:02]} e4 {[%emt 0:00:50]} 39. Rf1 {[%emt 0:01:26]} Qg4 {[%emt 0:00:22]} 40. Qh2 {[%emt 0:01:13]} Rb7 {[%emt 0:01:59]} 41. Re1 {[%emt 0:00:36]} Qg2 {[%emt 0:01:54]} 42. Qxg2 {[%emt 0:00:04]} Rxg2 {[%emt 0:00:04]} 43. Rxe4 {[%emt 0:01:04]} Rbxb2 {[%emt 0:00:07]} 44. Rg4 {[%emt 0:00:31]} Ra2+ {[%emt 0:00:29]} 45. Kb1 {[%emt 0:00:02]} Rgb2+ {[%emt 0:00:05]} 46. Kc1 {[%emt 0:00:04]} Rf2 {[%emt 0:00:09]} 47. Kb1 {[%emt 0:00:28]} Rae2 {[%emt 0:05:00]} 48. Rg1 {[%emt 0:00:08]} Rb2+ {[%emt 0:02:48]} 49. Ka1 {[%emt 0:00:15]} Ra2+ {[%emt 0:00:06]} 50. Kb1 {[%emt 0:00:02]} Rfb2+ {[%emt 0:03:27]} 51. Kc1 {[%emt 0:00:01]} Rb7 {[%emt 0:00:37]} 52. Rg4 {[%emt 0:00:28]} Rf7 {[%emt 0:00:39]} 53. Kb1 {[%emt 0:00:27]} Re2 {[%emt 0:00:48]} 54. Rg1 {[%emt 0:00:12]} Re3 {[%emt 0:00:06]} 55. Rc1 {[%emt 0:00:22]} Rb7+ {[%emt 0:00:54]} 56. Ka2 {[%emt 0:01:24]} Re2+ {[%emt 0:00:55]} 57. Ka1 {[%emt 0:00:01]} Rb3 {[%emt 0:00:26]} 58. Rg1 {[%emt 0:01:33]} Ra3+ {[%emt 0:00:26]} 59. Kb1 {[%emt 0:00:04]} Rea2 {[%emt 0:00:07]} 60. Rc1 {[%emt 0:01:10]} Rxa4 {[%emt 0:00:27]} 61. Rxa4 {[%emt 0:00:08]} 0-1